[Event "Cerrado Blitz Quart 2018"]
[Site "Quart (Valencia), Spain"]
[Date "2018.08.30"]
[Round "6.4"]
[White "Galvan, Jesus"]
[Black "Chernikov, Vladimir"]
[Result "1-0"]
[TimeControl "7 minutos +3s por jugada"]
[WhiteTitle "FM"]
[WhiteFideId "3800458"]
[BlackFideId "14112914"]
[WhiteElo "2225"]
[BlackElo "2035"]

1. c4 {[%clk 00:07:05]} Nf6 {[%clk 00:07:05]} {[%emt 00:00:02]} 2. Nc3 {[%clk
00:07:06]} c5 {[%clk 00:06:42]} {[%emt 00:00:27]} 3. g3 {[%clk 00:07:06]}
{[%emt 00:00:02]} Nc6 {[%clk 00:06:40]} {[%emt 00:00:05]} 4. Bg2 {[%clk
00:07:08]} g6 {[%clk 00:06:40]} {[%emt 00:00:04]} 5. a3 {[%clk 00:07:05]}
{[%emt 00:00:07]} Bg7 {[%clk 00:06:38]} {[%emt 00:00:04]} 6. Rb1 {[%clk
00:07:07]} {[%emt 00:00:01]} e6 {[%clk 00:06:08]} {[%emt 00:00:33]} 7. b4
{[%clk 00:06:57]} {[%emt 00:00:13]} d6 {[%clk 00:05:59]} {[%emt 00:00:12]} 8.
Nf3 {[%clk 00:06:48]} {[%emt 00:00:12]} Nd7 {[%clk 00:05:50]} {[%emt 00:00:12]}
9. O-O {[%clk 00:06:39]} {[%emt 00:00:11]} O-O {[%clk 00:05:51]} {[%emt
00:00:03]} 10. Ne1 {[%clk 00:05:15]} {[%emt 00:01:27]} Rb8 {[%clk 00:05:24]}
{[%emt 00:00:30]} 11. Ne4 {[%clk 00:04:55]} {[%emt 00:00:23]} Qc7 {[%clk
00:05:18]} {[%emt 00:00:08]} 12. Bb2 {[%clk 00:04:55]} {[%emt 00:00:03]} Nce5
{[%clk 00:04:38]} {[%emt 00:00:44]} 13. d3 {[%clk 00:04:52]} {[%emt 00:00:05]}
f6 {[%clk 00:04:00]} {[%emt 00:00:41]} 14. Rc1 {[%clk 00:04:30]} {[%emt
00:00:25]} b6 {[%clk 00:04:02]} {[%emt 00:00:02]} 15. e3 {[%clk 00:04:30]}
{[%emt 00:00:03]} Bb7 {[%clk 00:03:56]} {[%emt 00:00:09]} 16. f4 {[%clk
00:04:19]} {[%emt 00:00:15]} Nc6 {[%clk 00:03:47]} {[%emt 00:00:12]} 17. Qd2
{[%clk 00:04:13]} {[%emt 00:00:08]} Rbe8 {[%clk 00:03:40]} {[%emt 00:00:10]} 18.
d4 {[%clk 00:04:09]} {[%emt 00:00:08]} d5 {[%clk 00:03:35]} {[%emt 00:00:08]}
19. cxd5 {[%clk 00:04:09]} {[%emt 00:00:03]} exd5 {[%clk 00:03:36]} {[%emt
00:00:02]} 20. Nc3 {[%clk 00:03:49]} {[%emt 00:00:22]} cxd4 {[%clk 00:03:33]}
{[%emt 00:00:06]} 21. Nb5 {[%clk 00:03:45]} {[%emt 00:00:07]} Qb8 {[%clk
00:03:23]} {[%emt 00:00:13]} 22. Nxd4 {[%clk 00:03:47]} {[%emt 00:00:02]} Nxd4
{[%clk 00:03:16]} {[%emt 00:00:09]} 23. Bxd4 {[%clk 00:03:48]} Qd6 {[%clk
00:03:11]} {[%emt 00:00:09]} 24. Nd3 {[%clk 00:03:35]} {[%emt 00:00:16]} f5
{[%clk 00:03:10]} {[%emt 00:00:04]} 25. Qb2 {[%clk 00:03:37]} {[%emt 00:00:01]}
Bxd4 {[%clk 00:02:47]} {[%emt 00:00:26]} 26. Qxd4 {[%clk 00:03:38]} {[%emt
00:00:02]} Re7 {[%clk 00:02:18]} {[%emt 00:00:33]} 27. a4 {[%clk 00:03:00]}
{[%emt 00:00:41]} Rfe8 {[%clk 00:02:16]} {[%emt 00:00:05]} 28. Rfe1 {[%clk
00:03:02]} Qf6 {[%clk 00:01:48]} {[%emt 00:00:31]} 29. Bxd5+ {[%clk 00:02:36]}
{[%emt 00:00:29]} Bxd5 {[%clk 00:01:39]} {[%emt 00:00:12]} 30. Qxd5+ {[%clk
00:02:38]} Kg7 {[%clk 00:01:37]} {[%emt 00:00:05]} 31. Qd4 {[%clk 00:02:37]}
{[%emt 00:00:04]} Rxe3 {[%clk 00:01:30]} {[%emt 00:00:11]} 32. Qxd7+ {[%clk
00:02:30]} {[%emt 00:00:10]} R8e7 {[%clk 00:01:28]} {[%emt 00:00:04]} 33. Qd5
{[%clk 00:02:14]} {[%emt 00:00:19]} h5 {[%clk 00:01:04]} {[%emt 00:00:28]} 34.
Rxe3 {[%clk 00:01:51]} {[%emt 00:00:26]} Rxe3 {[%clk 00:01:06]} {[%emt
00:00:02]} 35. Re1 {[%clk 00:01:53]} Rxe1+ {[%clk 00:00:58]} {[%emt 00:00:11]}
36. Nxe1 {[%clk 00:01:54]} h4 {[%clk 00:00:59]} {[%emt 00:00:01]} 37. Qe5
{[%clk 00:01:56]} {[%emt 00:00:02]} 1-0

[Event "Cerrado Blitz Quart 2018"]
[Site "Quart (Valencia), Spain"]
[Date "2018.08.30"]
[Round "6.5"]
[White "Alonso Garcia, Aaron"]
[Black "Diaz Velandia, J Manuel"]
[Result "0-1"]
[TimeControl "7 minutos +3s por jugada"]
[WhiteTitle "FM"]
[BlackTitle "FM"]
[WhiteFideId "24521060"]
[BlackFideId "3901939"]
[WhiteElo "1604"]
[BlackElo "2367"]

1. e4 {[%clk 00:07:04]} c6 {[%clk 00:07:04]} 2. d4 {[%clk 00:07:04]} d5 {[%clk
00:07:06]} 3. Nc3 {[%clk 00:07:06]} dxe4 4. Nxe4 {[%clk 00:07:08]} Nf6 {[%clk
00:07:09]} 5. Nxf6+ exf6 {[%clk 00:07:11]} 6. c3 {[%clk 00:07:09]} Bd6 {[%clk
00:07:12]} 7. Bd3 {[%clk 00:07:11]} O-O {[%clk 00:07:13]} 8. Qc2 {[%clk
00:07:11]} g6 {[%clk 00:07:13]} 9. Ne2 {[%clk 00:07:10]} Qc7 {[%clk 00:07:09]}
10. Bh6 {[%clk 00:06:43]} Re8 {[%clk 00:07:11]} 11. O-O-O {[%clk 00:06:43]} Be6
{[%clk 00:07:00]} 12. Kb1 {[%clk 00:06:20]} b5 {[%clk 00:06:59]} 13. h4 {[%clk
00:06:21]} Nd7 {[%clk 00:06:57]} 14. h5 {[%clk 00:06:22]} f5 {[%clk 00:06:59]}
15. g4 {[%clk 00:05:57]} Bf8 {[%clk 00:05:53]} {[%emt 00:00:35]} 16. gxf5
{[%clk 00:04:13]} {[%emt 00:01:47]} Bd5 {[%clk 00:05:49]} {[%emt 00:00:08]} 17.
Bf4 {[%clk 00:03:21]} {[%emt 00:00:54]} Bd6 {[%clk 00:05:40]} {[%emt 00:00:12]}
18. Bxd6 {[%clk 00:03:20]} {[%emt 00:00:04]} Qxd6 {[%clk 00:05:42]} 19. Rhg1
{[%clk 00:03:15]} {[%emt 00:00:09]} g5 {[%clk 00:05:43]} {[%emt 00:00:02]} 20.
Rxg5+ {[%clk 00:03:00]} {[%emt 00:00:17]} Kh8 {[%clk 00:05:45]} 21. Rdg1 {[%clk
00:02:53]} {[%emt 00:00:10]} Rg8 {[%clk 00:05:18]} {[%emt 00:00:31]} 22. Qd2
{[%clk 00:02:47]} {[%emt 00:00:10]} h6 {[%clk 00:04:35]} {[%emt 00:00:45]} 23.
Rxg8+ {[%clk 00:02:34]} {[%emt 00:00:16]} Rxg8 {[%clk 00:04:37]} 24. Rxg8+
{[%clk 00:02:37]} Kxg8 {[%clk 00:04:38]} {[%emt 00:00:01]} 25. Qe3 {[%clk
00:02:35]} {[%emt 00:00:04]} Kg7 {[%clk 00:04:21]} {[%emt 00:00:20]} 26. Nf4
{[%clk 00:02:31]} {[%emt 00:00:07]} a5 {[%clk 00:04:07]} {[%emt 00:00:17]} 27.
Qg3+ {[%clk 00:02:11]} {[%emt 00:00:22]} Kf6 {[%clk 00:04:02]} {[%emt
00:00:09]} 28. Qh4+ {[%clk 00:01:30]} {[%emt 00:00:45]} Kg7 {[%clk 00:04:02]}
{[%emt 00:00:02]} 29. Ne2 {[%clk 00:01:08]} {[%emt 00:00:25]} a4 {[%clk
00:03:32]} {[%emt 00:00:34]} 30. Qg3+ {[%clk 00:01:00]} {[%emt 00:00:11]} Qxg3
{[%clk 00:03:34]} 31. fxg3 {[%clk 00:01:02]} {[%emt 00:00:01]} Kf6 {[%clk
00:03:36]} 32. Nf4 {[%clk 00:01:04]} Bf3 {[%clk 00:03:35]} {[%emt 00:00:04]} 33.
Kc2 {[%clk 00:00:55]} {[%emt 00:00:12]} Kg5 {[%clk 00:03:34]} {[%emt 00:00:04]}
34. Kd2 {[%clk 00:00:55]} {[%emt 00:00:03]} Kg4 {[%clk 00:03:33]} {[%emt
00:00:04]} 35. Ke3 {[%clk 00:00:50]} {[%emt 00:00:08]} Kxg3 {[%clk 00:03:34]}
{[%emt 00:00:02]} 36. d5 {[%clk 00:00:53]} Nf6 {[%clk 00:02:36]} {[%emt
00:01:01]} 37. d6 {[%clk 00:00:46]} {[%emt 00:00:10]} Nd7 {[%clk 00:02:12]}
{[%emt 00:00:27]} 38. f6 {[%clk 00:00:37]} {[%emt 00:00:12]} Nxf6 {[%clk
00:02:06]} {[%emt 00:00:09]} 39. Bf5 {[%clk 00:00:38]} {[%emt 00:00:02]} Bg4
{[%clk 00:02:08]} {[%emt 00:00:01]} 40. Bxg4 {[%clk 00:00:27]} {[%emt
00:00:14]} Kxg4 {[%clk 00:02:06]} {[%emt 00:00:05]} 41. Nd3 {[%clk 00:00:29]}
Nd7 {[%clk 00:02:04]} {[%emt 00:00:04]} 42. Ke4 {[%clk 00:00:31]} {[%emt
00:00:01]} f5+ {[%clk 00:02:06]} {[%emt 00:00:02]} 43. Ke3 {[%clk 00:00:28]}
{[%emt 00:00:06]} Kxh5 {[%clk 00:01:49]} {[%emt 00:00:20]} 44. Kd4 {[%clk
00:00:17]} {[%emt 00:00:14]} f4 {[%clk 00:00:36]} {[%emt 00:01:16]} 45. Nxf4+
{[%clk 00:00:13]} {[%emt 00:00:07]} Kg4 {[%clk 00:00:20]} {[%emt 00:00:19]} 46.
Nd3 {[%clk 00:00:15]} Kf5 {[%clk 00:00:07]} {[%emt 00:00:17]} 47. Nc5 {[%clk
00:00:18]} Nb6 {[%clk 00:00:08]} {[%emt 00:00:02]} 48. Nb7 {[%clk 00:00:17]}
{[%emt 00:00:04]} h5 {[%clk 00:00:09]} {[%emt 00:00:03]} 49. Kc5 {[%clk
00:00:19]} Nd7+ {[%clk 00:00:06]} {[%emt 00:00:06]} 50. Kxc6 {[%clk 00:00:21]}
{[%emt 00:00:01]} Ne5+ {[%clk 00:00:08]} 51. Kd5 {[%clk 00:00:09]} {[%emt
00:00:15]} h4 {[%clk 00:00:10]} 52. Nc5 {[%clk 00:00:06]} {[%emt 00:00:06]} h3
{[%clk 00:00:12]} 53. Nd3 {[%clk 00:00:09]} Nxd3 {[%clk 00:00:08]} {[%emt
00:00:08]} 54. d7 {[%clk 00:00:11]} h2 {[%clk 00:00:07]} {[%emt 00:00:03]} 55.
d8=Q {[%clk 00:00:13]} h1=Q+ {[%clk 00:00:09]} {[%emt 00:00:01]} 56. Kd4 {[%clk
00:00:15]} Qe4# {[%clk 00:00:07]} {[%emt 00:00:04]} 0-1

[Event "Cerrado Blitz Quart 2018"]
[Site "Quart (Valencia), Spain"]
[Date "2018.08.30"]
[Round "7.1"]
[White "Diaz Velandia, J Manuel"]
[Black "Pena Riasco, Alexander"]
[Result "1-0"]
[TimeControl "7 minutos +3s por jugada"]
[WhiteTitle "FM"]
[BlackTitle "FM"]
[WhiteFideId "3901939"]
[BlackFideId "4403339"]
[WhiteElo "2367"]
[BlackElo "2119"]

1. d4 {[%clk 00:07:04]} {[%emt 00:00:29]} d5 {[%clk 00:07:06]} 2. Nf3 {[%clk
00:07:06]} Nf6 {[%clk 00:07:08]} 3. e3 {[%clk 00:07:08]} {[%emt 00:00:03]} e6
{[%clk 00:07:10]} 4. Bd3 {[%clk 00:07:10]} Bd6 {[%clk 00:07:13]} 5. O-O {[%clk
00:07:12]} Nbd7 {[%clk 00:07:12]} 6. c3 {[%clk 00:07:14]} c6 {[%clk 00:07:13]}
{[%emt 00:00:04]} 7. Nbd2 {[%clk 00:07:15]} e5 {[%clk 00:07:12]} 8. e4 {[%clk
00:07:18]} O-O {[%clk 00:07:05]} 9. Nxe5 {[%clk 00:07:19]} {[%emt 00:00:04]}
Nxe5 {[%clk 00:07:06]} 10. dxe5 {[%clk 00:07:21]} Bxe5 {[%clk 00:07:07]} {[%emt
00:00:06]} 11. f4 {[%clk 00:07:23]} Bc7 {[%clk 00:06:44]} {[%emt 00:00:20]} 12.
e5 {[%clk 00:07:19]} {[%emt 00:00:32]} Ng4 {[%clk 00:06:09]} {[%emt 00:00:13]}
13. Qe2 {[%clk 00:07:21]} {[%emt 00:00:30]} Bb6+ {[%clk 00:05:36]} {[%emt
00:00:09]} 14. Kh1 {[%clk 00:07:23]} {[%emt 00:00:04]} Qh4 {[%clk 00:05:36]}
{[%emt 00:00:10]} 15. g3 {[%clk 00:07:08]} {[%emt 00:00:07]} Qh3 {[%clk
00:05:17]} {[%emt 00:00:24]} 16. Nf3 {[%clk 00:07:06]} {[%emt 00:00:04]} h6
{[%clk 00:04:45]} {[%emt 00:00:36]} 17. Nd4 {[%clk 00:06:42]} {[%emt 00:00:24]}
c5 {[%clk 00:04:20]} {[%emt 00:00:37]} 18. Nf3 {[%clk 00:06:41]} c4 {[%clk
00:04:22]} 19. Bc2 {[%clk 00:06:43]} Bd7 {[%clk 00:03:53]} {[%emt 00:00:31]} 20.
Qg2 {[%clk 00:06:34]} {[%emt 00:00:10]} Qh5 {[%clk 00:02:56]} {[%emt 00:01:00]}
21. Nd4 {[%clk 00:06:29]} {[%emt 00:00:08]} Rae8 {[%emt 00:00:37]} 22. Bd2
{[%clk 00:05:58]} {[%emt 00:00:26]} Nxe5 {[%clk 00:02:22]} {[%emt 00:00:18]} 23.
fxe5 {[%clk 00:05:55]} {[%emt 00:00:14]} Rxe5 {[%clk 00:02:25]} 24. Bd1 {[%clk
00:05:29]} {[%emt 00:00:14]} Qg6 {[%clk 00:02:19]} {[%emt 00:00:15]} 25. Bf4
{[%clk 00:05:23]} {[%emt 00:00:06]} Re7 {[%clk 00:01:57]} {[%emt 00:00:23]} 26.
Bf3 {[%clk 00:05:19]} {[%emt 00:00:27]} Rfe8 {[%clk 00:01:54]} 27. Rad1 {[%clk
00:05:14]} {[%emt 00:00:07]} Bg4 {[%clk 00:01:42]} {[%emt 00:00:10]} 28. Rd2
{[%clk 00:04:31]} {[%emt 00:00:44]} Re1 {[%clk 00:01:34]} {[%emt 00:00:06]} 29.
Rd1 {[%clk 00:04:26]} {[%emt 00:00:08]} R1e7 {[%clk 00:01:22]} {[%emt
00:00:15]} 30. Bxg4 {[%clk 00:04:09]} {[%emt 00:00:18]} Qxg4 {[%clk 00:01:23]}
{[%emt 00:00:12]} 31. h3 {[%clk 00:03:56]} {[%emt 00:00:31]} Qh5 {[%clk
00:01:22]} {[%emt 00:00:04]} 32. g4 {[%clk 00:03:54]} Qg6 {[%clk 00:01:19]} 33.
Rd2 {[%clk 00:03:41]} {[%emt 00:00:04]} Bxd4 {[%clk 00:01:17]} {[%emt
00:00:04]} 34. cxd4 {[%clk 00:03:41]} {[%emt 00:00:04]} Re4 {[%clk 00:01:11]}
{[%emt 00:00:13]} 35. Be5 {[%clk 00:03:34]} {[%emt 00:00:14]} Qg5 {[%clk
00:01:07]} 36. Rdf2 {[%clk 00:03:24]} {[%emt 00:00:13]} f6 {[%clk 00:01:04]}
{[%emt 00:00:05]} 37. Bf4 {[%clk 00:03:14]} {[%emt 00:00:14]} Qg6 {[%clk
00:01:03]} {[%emt 00:00:04]} 38. Rd2 {[%clk 00:03:15]} {[%emt 00:00:10]} Qf7
{[%clk 00:01:02]} {[%emt 00:00:10]} 39. Bh2 {[%clk 00:03:01]} {[%emt 00:00:04]}
b5 {[%clk 00:00:59]} {[%emt 00:00:06]} 40. Qf3 {[%clk 00:02:51]} {[%emt
00:00:11]} Re3 {[%clk 00:00:55]} {[%emt 00:00:05]} 41. Qg2 {[%clk 00:02:50]}
{[%emt 00:00:24]} Qe6 {[%clk 00:00:50]} 42. Bg1 {[%clk 00:02:27]} {[%emt
00:00:17]} Re4 {[%clk 00:00:46]} {[%emt 00:00:06]} 43. a3 {[%clk 00:02:22]}
{[%emt 00:00:07]} a5 {[%clk 00:00:47]} {[%emt 00:00:21]} 44. Ra1 {[%clk
00:02:19]} Kh7 {[%clk 00:00:33]} {[%emt 00:00:10]} 45. Qf3 {[%clk 00:02:19]}
Kg8 {[%clk 00:00:32]} {[%emt 00:00:06]} 46. Rf1 {[%clk 00:02:08]} {[%emt
00:00:08]} b4 {[%clk 00:00:29]} {[%emt 00:00:06]} 47. axb4 {[%clk 00:02:10]}
{[%emt 00:00:29]} axb4 {[%clk 00:00:31]} 48. Ra1 {[%clk 00:02:12]} Qc6 {[%clk
00:00:29]} {[%emt 00:00:04]} 49. Rg2 {[%clk 00:02:03]} Re1 {[%clk 00:00:25]}
{[%emt 00:00:06]} 50. Rxe1 {[%clk 00:02:03]} Rxe1 {[%clk 00:00:28]} 51. Qf2
{[%clk 00:01:48]} {[%emt 00:00:12]} Qe6 {[%clk 00:00:25]} {[%emt 00:00:05]} 52.
Qd2 {[%clk 00:01:44]} {[%emt 00:00:09]} b3 {[%clk 00:00:22]} {[%emt 00:00:05]}
53. Kh2 {[%clk 00:01:27]} {[%emt 00:00:18]} Qe4 {[%clk 00:00:20]} {[%emt
00:00:14]} 54. Rf2 {[%clk 00:00:56]} {[%emt 00:00:32]} Kh8 {[%clk 00:00:14]}
{[%emt 00:00:03]} 55. Qa5 {[%clk 00:00:22]} {[%emt 00:00:36]} Qe3 {[%clk
00:00:05]} {[%emt 00:00:24]} 56. Qd8+ {[%clk 00:00:13]} {[%emt 00:00:03]} Kh7
{[%clk 00:00:07]} 57. Qxd5 {[%clk 00:00:13]} {[%emt 00:00:16]} Rxg1 {[%emt
00:00:03]} 58. Kxg1 {[%clk 00:00:12]} 1-0

[Event "Cerrado Blitz Quart 2018"]
[Site "Quart (Valencia), Spain"]
[Date "2018.08.30"]
[Round "7.2"]
[White "Chernikov, Vladimir"]
[Black "Alonso Garcia, Aaron"]
[Result "1-0"]
[TimeControl "7 minutos +3s por jugada"]
[BlackTitle "FM"]
[WhiteFideId "14112914"]
[BlackFideId "24521060"]
[WhiteElo "2035"]
[BlackElo "1604"]

1. b3 {[%clk 00:07:04]} {[%emt 00:00:39]} e5 {[%clk 00:07:02]} 2. Bb2 {[%clk
00:07:06]} Nc6 {[%clk 00:07:01]} 3. e3 {[%clk 00:07:05]} {[%emt 00:00:04]} Nge7
{[%clk 00:06:59]} 4. c4 {[%clk 00:06:56]} g6 {[%clk 00:06:59]} {[%emt
00:00:09]} 5. Nc3 {[%clk 00:06:58]} Bg7 {[%clk 00:07:02]} 6. d3 {[%clk
00:06:36]} {[%emt 00:00:10]} d5 {[%clk 00:06:59]} {[%emt 00:00:42]} 7. Nge2
{[%clk 00:06:04]} {[%emt 00:00:07]} O-O {[%clk 00:06:49]} {[%emt 00:00:10]} 8.
cxd5 {[%clk 00:06:05]} Nxd5 {[%clk 00:06:51]} 9. Nxd5 {[%clk 00:06:06]} {[%emt
00:00:04]} Qxd5 {[%clk 00:06:53]} 10. Nc3 {[%clk 00:06:07]} {[%emt 00:00:06]}
Qd8 {[%clk 00:06:19]} {[%emt 00:00:30]} 11. Be2 {[%clk 00:06:03]} {[%emt
00:00:07]} Bf5 {[%clk 00:06:10]} {[%emt 00:00:12]} 12. O-O {[%clk 00:05:41]}
{[%emt 00:00:24]} Qe7 {[%clk 00:05:48]} {[%emt 00:00:30]} 13. a3 {[%clk
00:05:30]} {[%emt 00:00:11]} Rad8 {[%clk 00:05:49]} {[%emt 00:00:39]} 14. Qc2
{[%clk 00:05:32]} Rfe8 {[%clk 00:05:48]} 15. b4 {[%clk 00:05:29]} a6 {[%clk
00:05:43]} {[%emt 00:00:09]} 16. Rad1 {[%clk 00:05:26]} a5 {[%clk 00:04:06]}
{[%emt 00:01:21]} 17. b5 {[%clk 00:04:58]} {[%emt 00:00:29]} Na7 {[%clk
00:04:07]} {[%emt 00:00:03]} 18. Bf3 {[%clk 00:04:19]} {[%emt 00:00:40]} Bxd3
{[%emt 00:01:03]} 19. Rxd3 {[%clk 00:04:15]} {[%emt 00:00:03]} Rxd3 {[%clk
00:03:18]} 20. Qxd3 {[%clk 00:04:04]} {[%emt 00:00:09]} e4 {[%clk 00:03:21]} 21.
Bxe4 {[%clk 00:04:01]} {[%emt 00:00:15]} Bxc3 {[%clk 00:03:20]} 22. Qxc3 {[%clk
00:04:02]} {[%emt 00:00:03]} 1-0

[Event "Cerrado Blitz Quart 2018"]
[Site "Quart (Valencia), Spain"]
[Date "2018.08.30"]
[Round "7.3"]
[White "Ordoñez Carrasco, Jorge"]
[Black "Galvan, Jesus"]
[Result "0-1"]
[TimeControl "7 minutos +3s por jugada"]
[BlackTitle "FM"]
[WhiteFideId "24529826"]
[BlackFideId "3800458"]
[WhiteElo "1531"]
[BlackElo "2225"]

1. e4 {[%clk 00:07:03]} {[%emt 00:00:01]} c5 {[%clk 00:07:06]} 2. Nf3 {[%clk
00:07:04]} {[%emt 00:00:04]} Nf6 {[%clk 00:07:08]} 3. Nc3 {[%clk 00:07:01]}
{[%emt 00:00:07]} Nc6 {[%clk 00:07:09]} 4. Bc4 {[%clk 00:06:56]} {[%emt
00:00:08]} e6 {[%clk 00:07:08]} {[%emt 00:00:05]} 5. d3 {[%clk 00:06:50]}
{[%emt 00:00:09]} d5 {[%clk 00:07:09]} {[%emt 00:00:01]} 6. exd5 {[%clk
00:06:47]} {[%emt 00:00:06]} exd5 {[%clk 00:07:11]} 7. Bb5 {[%clk 00:06:39]}
{[%emt 00:00:11]} Be7 {[%clk 00:07:05]} {[%emt 00:00:09]} 8. O-O {[%clk
00:06:30]} {[%emt 00:00:12]} O-O {[%clk 00:07:06]} {[%emt 00:00:02]} 9. Bf4
{[%clk 00:06:16]} {[%emt 00:00:17]} Bg4 {[%clk 00:07:07]} {[%emt 00:00:03]} 10.
h3 {[%clk 00:06:16]} {[%emt 00:00:04]} Bh5 {[%clk 00:07:09]} 11. Bxc6 {[%clk
00:05:53]} {[%emt 00:00:27]} bxc6 {[%clk 00:07:10]} {[%emt 00:00:01]} 12. Re1
{[%clk 00:05:52]} {[%emt 00:00:04]} h6 {[%clk 00:06:59]} {[%emt 00:00:15]} 13.
g4 {[%clk 00:05:21]} {[%emt 00:00:33]} Bg6 {[%clk 00:07:01]} {[%emt 00:00:02]}
14. Ne5 {[%clk 00:05:23]} {[%emt 00:00:02]} Rc8 {[%clk 00:06:36]} {[%emt
00:00:27]} 15. Nxg6 {[%clk 00:05:09]} {[%emt 00:00:17]} fxg6 {[%clk 00:06:38]}
{[%emt 00:00:01]} 16. Qe2 {[%clk 00:04:57]} {[%emt 00:00:12]} Rf7 {[%clk
00:05:51]} {[%emt 00:00:52]} 17. Qe6 {[%clk 00:04:16]} {[%emt 00:00:45]} Qd7
{[%clk 00:05:41]} {[%emt 00:00:12]} 18. Re2 {[%clk 00:04:11]} {[%emt 00:00:08]}
Qxe6 {[%clk 00:05:19]} {[%emt 00:00:26]} 19. Rxe6 {[%clk 00:04:12]} {[%emt
00:00:02]} Bf8 {[%clk 00:05:21]} 20. Rae1 {[%clk 00:04:05]} {[%emt 00:00:09]}
Nxg4 {[%clk 00:05:17]} {[%emt 00:00:08]} 21. hxg4 {[%clk 00:03:53]} {[%emt
00:00:15]} Rxf4 {[%clk 00:05:19]} 22. Rxg6 {[%clk 00:03:47]} {[%emt 00:00:09]}
Kf7 {[%clk 00:05:03]} {[%emt 00:00:19]} 23. Rge6 {[%clk 00:03:37]} {[%emt
00:00:13]} Rxg4+ {[%clk 00:04:58]} {[%emt 00:00:09]} 24. Kh2 {[%clk 00:03:37]}
Rg6 {[%clk 00:04:46]} {[%emt 00:00:18]} 25. R6e5 {[%clk 00:03:29]} {[%emt
00:00:08]} Bd6 {[%clk 00:04:46]} {[%emt 00:00:05]} 26. f4 {[%clk 00:03:21]}
{[%emt 00:00:11]} Bxe5 {[%clk 00:04:46]} {[%emt 00:00:04]} 27. Rxe5 {[%clk
00:03:19]} {[%emt 00:00:05]} Re8 {[%clk 00:04:41]} {[%emt 00:00:07]} 28. Rf5+
{[%clk 00:03:17]} {[%emt 00:00:05]} Rf6 {[%clk 00:04:42]} {[%emt 00:00:03]} 29.
Rxf6+ {[%clk 00:03:17]} {[%emt 00:00:03]} Kxf6 {[%clk 00:04:44]} {[%emt
00:00:01]} 30. Kg3 {[%clk 00:03:16]} {[%emt 00:00:03]} Kf5 {[%clk 00:04:39]}
{[%emt 00:00:08]} 31. Kf3 {[%clk 00:03:11]} {[%emt 00:00:07]} h5 {[%clk
00:04:29]} {[%emt 00:00:14]} 32. Na4 {[%clk 00:02:57]} {[%emt 00:00:16]} h4
{[%clk 00:04:27]} {[%emt 00:00:05]} 33. Nxc5 {[%clk 00:02:58]} {[%emt
00:00:02]} h3 {[%clk 00:04:25]} {[%emt 00:00:05]} 34. Kg3 {[%clk 00:03:00]}
Re3+ {[%clk 00:04:20]} {[%emt 00:00:08]} 35. Kh2 {[%clk 00:02:59]} {[%emt
00:00:04]} Kg4 {[%clk 00:04:19]} {[%emt 00:00:04]} 36. Nd7 {[%clk 00:02:56]}
{[%emt 00:00:05]} Re2+ {[%clk 00:04:20]} {[%emt 00:00:03]} 37. Kh1 {[%clk
00:02:57]} Kg3 {[%clk 00:04:21]} {[%emt 00:00:03]} 0-1